bitfinex/quotes_SOLUSD_20241101
["timestamp","ask_amount","ask_price","bid_price","bid_amount"]
[1730447826338,10.89277658,166.22,166.18,23.776884]
[1730447827459,10.89277658,166.22,166.17,23.776884]
[1730447827668,10.85301555,166.22,166.17,23.776884]
[1730447829354,10.85301555,166.22,166.18,0.12549]
[1730447829671,10.85301555,166.22,166.19,23.776884]
[1730447830043,10.85301555,166.22,166.18,23.776884]
[1730447830764,10.27138518,166.21,166.17,23.776884]
[1730447830939,10.27138518,166.2,166.16,23.776884]
[1730447831259,10.27138518,166.21,166.16,34.04826918]
[1730447832348,10.27138518,166.2,166.16,23.776884]
[1730447834465,10.27138518,166.2,166.15,23.776884]
[1730447834769,10.27138518,166.2,166.15,23.902374]
[1730447835845,10.27138518,166.2,166.15,34.17375918]
[1730447836051,10.27138518,166.2,166.15,40.19235918]
[1730447838865,10.27138518,166.2,166.15,29.920974]
[1730447839865,10.27138518,166.19,166.15,23.776884]
[1730447842550,10.27138518,166.17,166.12,10.27138518]
[1730447842957,10.27138518,166.16,166.11,22.91598518]
[1730447843154,10.27138518,166.17,166.12,10.27138518]
[1730447843857,10.27138518,166.17,166.13,23.776884]
[1730447844872,16.88703037,166.22,166.12,23.776884]
[1730447844873,10.27138518,166.16,166.12,23.776884]
[1730447846556,10.27138518,166.15,166.12,23.776884]
[1730447849164,10.27138518,166.15,166.09,15.7137]
[1730447849165,10.27138518,166.13,166.09,15.7137]
[1730447849366,10.27138518,166.12,166.08,6.0211]
[1730447849776,10.27138518,166.13,166.08,16.29248518]
[1730447850263,10.27138518,166.13,166.08,31.34538518]
[1730447850777,10.27138518,166.13,166.09,23.776884]
[1730447853485,10.27138518,166.12,166.09,23.776884]
[1730447853874,10.27138518,166.1,166.05,26.30188518]
[1730447854078,10.27138518,166.09,166.05,16.0305]
[1730447854273,10.27138518,166.09,166.05,37.1084]
[1730447854487,10.27138518,166.08,166.05,15.0557]
[1730447854656,10.27138518,166.06,166.02,6.0233]
[1730447854863,16.3297,166.12,166.02,6.0233]
[1730447854864,10.27138518,166.05,166.02,6.0233]
[1730447855556,10.27138518,166.06,166.02,6.0233]
[1730447856570,10.27138518,166.05,166.01,30.2806]
[1730447856777,10.27138518,166.05,166.01,15.0588]
[1730447857097,10.27138518,166.04,166.01,15.0588]
[1730447858896,10.27138518,166.05,166.01,15.0588]
[1730447859093,10.27138518,166.05,166.02,23.776884]
[1730447859400,10.27138518,166.07,166.02,23.776884]
[1730447859899,10.27138518,166.07,166.02,29.800184]
[1730447862501,10.27138518,166.08,166.03,16.67075518]
[1730447862797,10.27138518,166.08,166.04,23.776884]
[1730447864378,16.3297,166.12,166.04,23.776884]
[1730447864607,10.27138518,166.07,166.04,23.776884]
[1730447867399,10.27138518,166.08,166.04,23.776884]
[1730447867596,10.27138518,166.09,166.04,29.799284]
[1730447867791,10.27138518,166.08,166.04,29.799284]
[1730447868487,10.27138518,166.08,166.04,23.776884]
[1730447875600,10.27138518,166.07,166.04,23.776884]
[1730447876896,10.27138518,166.08,166.04,23.776884]
[1730447878995,10.27138518,166.11,166.06,34.04826918]
[1730447880716,10.27138518,166.1,166.05,34.29924918]
[1730447881213,10.27138518,166.09,166.05,24.027864]
[1730447881886,10.27138518,166.1,166.05,34.29924918]
[1730447884899,10.27138518,166.09,166.05,24.027864]
[1730447885614,10.27138518,166.1,166.05,24.027864]
[1730447888184,10.27138518,166.09,166.03,25.43028518]
[1730447888407,10.27138518,166.08,166.03,15.1589]
[1730447889303,10.27138518,166.08,166.03,25.43028518]
[1730447889818,10.27138518,166.08,166.04,23.776884]
[1730447890513,10.27138518,166.09,166.04,34.04826918]
[1730447891416,10.27138518,166.09,166.04,30.95126398]
[1730447891615,10.27138518,166.09,166.04,20.6798788]
[1730447898528,10.27138518,166.08,166.04,20.6798788]
[1730447902639,10.27138518,166.09,166.04,20.6798788]
[1730447903127,10.27138518,166.09,166.04,30.95126398]
[1730447903333,10.27138518,166.1,166.04,30.95126398]
[1730447903904,41.08554072,166.14,166.04,30.95126398]
[1730447903905,10.27138518,166.09,166.04,20.6798788]
[1730447910212,10.27138518,166.08,166.04,20.6798788]
[1730447910529,10.27138518,166.07,166.04,20.6798788]
[1730447910835,10.27138518,166.05,166.01,24.027864]
[1730447911031,10.27138518,166.06,166.01,24.027864]
[1730447911418,10.27138518,166.06,166.01,30.051464]
[1730447911618,10.27138518,166.06,166.01,40.32284918]
[1730447913530,10.27138518,166.07,166.03,23.776884]
[1730447913730,10.27138518,166.06,166.03,23.776884]
[1730447914522,10.27138518,166.06,166.02,23.902374]
[1730447915444,10.27138518,166.05,166.01,24.027864]
[1730447918538,10.27138518,166.05,166.01,23.776884]
[1730447918725,10.27138518,166.04,166.01,23.776884]
[1730447920247,10.27138518,166.04,166.0,23.902374]
[1730447920453,10.27138518,166.02,165.97,22.49838518]
[1730447920635,10.27138518,166.02,165.98,0.12549]
[1730447921337,10.27138518,166.03,165.98,10.39687518]
[1730447921726,10.27138518,166.03,165.99,23.776884]
[1730447921943,10.27138518,166.04,165.99,34.04826918]
[1730447922840,22.3203,166.1,166.01,23.776884]
[1730447922841,10.27138518,166.06,166.01,23.776884]
[1730447923046,10.27138518,166.06,166.01,34.04826918]
[1730447924441,10.27138518,166.04,166.01,23.776884]
[1730447925363,10.27138518,166.05,166.01,23.776884]
[1730447926038,10.27138518,166.06,166.01,23.776884]
[1730447926445,10.27138518,166.06,166.01,34.04826918]
[1730447929871,10.27138518,166.06,166.01,23.776884]
[1730447931649,10.27138518,166.03,165.98,10.27138518]
[1730447931846,22.4203,166.1,165.98,10.27138518]
[1730447931847,10.27138518,166.04,165.98,10.27138518]
[1730447932045,10.27138518,166.04,165.99,10.39687518]
[1730447932956,10.27138518,166.04,166.0,24.027864]
[1730447933944,10.27138518,166.06,166.0,10.52236518]
[1730447934466,10.27138518,166.06,166.01,23.776884]
[1730447937557,10.27138518,166.05,166.0,24.027864]
[1730447938860,10.27138518,166.09,166.04,10.27138518]
[1730447939165,10.27138518,166.07,166.03,23.776884]
[1730447939564,10.27138518,166.06,166.03,23.776884]
[1730447940061,10.27138518,166.04,166.01,23.776884]
[1730447940270,10.27138518,166.03,166.0,24.027864]
[1730447940444,10.27138518,166.04,166.0,24.027864]
[1730447940648,10.27138518,166.05,166.0,24.027864]
[1730447941350,10.27138518,166.07,166.01,10.27138518]
[1730447942056,10.27138518,166.07,166.02,34.04826918]
[1730447942756,10.27138518,166.08,166.02,34.04826918]
[1730447945667,10.27138518,166.07,166.02,34.04826918]
[1730447946972,10.27138518,166.06,166.02,23.776884]
[1730447947173,10.27138518,166.06,166.01,23.776884]
[1730447947373,10.27138518,166.04,166.0,0.12549]
[1730447948854,10.27138518,166.04,166.0,23.902374]
[1730447949069,10.27138518,166.04,166.0,23.776884]
[1730447949369,10.27138518,166.02,165.97,25.33418518]
[1730447950867,10.27138518,166.02,165.98,23.776884]
[1730447955872,10.27138518,166.03,165.98,23.776884]
[1730447958074,10.27138518,166.02,165.98,23.776884]
[1730447960974,10.27138518,166.03,165.98,23.776884]
[1730447963077,10.27138518,166.03,165.98,34.04826918]
[1730447964468,10.27138518,166.03,165.98,23.776884]
[1730447965197,10.27138518,166.02,165.98,23.776884]
[1730447965356,10.27138518,166.01,165.98,23.776884]
[1730447967973,10.27138518,166.02,165.98,23.776884]
[1730447969269,16.1296,166.06,165.98,23.776884]
[1730447969469,10.27138518,165.99,165.94,10.27138518]
[1730447969862,10.27138518,166.0,165.95,10.27138518]
[1730447970785,10.27138518,166.0,165.96,23.776884]
[1730447973184,10.27138518,166.0,165.95,23.776884]
[1730447975888,10.27138518,165.99,165.95,23.776884]
[1730447976278,10.27138518,166.0,165.95,29.802684]
[1730447976472,6.2365,166.04,165.96,0.37647]
[1730447976473,10.27138518,166.01,165.96,0.37647]
[1730447976675,10.27138518,166.02,165.97,23.776884]
[1730447978183,10.27138518,166.02,165.97,40.07336918]
[1730447978369,10.27138518,166.03,165.97,40.07336918]
[1730447979369,10.27138518,166.02,165.97,23.776884]
[1730447980875,10.27138518,166.01,165.97,23.776884]
[1730447982298,10.27138518,166.02,165.97,23.776884]
[1730447984900,10.27138518,166.02,165.97,34.04826918]
[1730447986296,10.27138518,166.04,165.98,10.64785518]
[1730447986504,10.27138518,166.04,165.99,23.776884]
[1730447987494,10.27138518,166.03,165.99,23.776884]
[1730447988474,10.27138518,166.04,165.99,10.27138518]
[1730447988906,10.27138518,166.04,166.0,23.776884]
[1730447990503,10.27138518,166.03,166.0,23.776884]
[1730447990706,10.27138518,166.03,165.99,23.776884]
[1730447991509,10.27138518,166.02,165.99,23.776884]
[1730447991678,10.27138518,166.02,165.98,24.153354]
[1730447993505,10.27138518,166.04,165.98,34.42473918]
[1730447993711,10.27138518,166.03,165.98,34.42473918]
[1730447995294,10.27138518,166.02,165.98,24.153354]
[1730447998805,10.27138518,166.01,165.96,23.776884]
[1730447998982,10.27138518,165.99,165.94,10.27138518]
[1730447999189,10.27138518,165.99,165.93,10.27138518]
[1730447999387,10.27138518,165.99,165.94,10.27138518]
[1730447999689,10.27138518,166.0,165.94,10.27138518]
[1730448000203,10.27138518,166.0,165.95,10.27138518]
[1730448000708,10.27138518,166.0,165.96,23.776884]
[1730448001520,10.27138518,166.01,165.96,34.04826918]
[1730448001813,10.27138518,166.0,165.95,10.27138518]
[1730448002308,10.27138518,166.0,165.96,23.776884]
[1730448002719,6.613,166.04,165.96,23.776884]
[1730448002720,10.27138518,166.01,165.96,23.776884]
[1730448003104,10.27138518,166.0,165.96,23.776884]
[1730448003810,10.27138518,166.01,165.96,23.776884]
[1730448004391,10.27138518,166.0,165.95,34.04826918]
[1730448004599,10.27138518,166.01,165.95,34.04826918]
[1730448004792,10.27138518,166.02,165.96,10.52236518]
[1730448004993,10.27138518,166.04,165.99,0.12549]
[1730448005210,10.27138518,166.06,166.0,34.04826918]
[1730448005393,20.0,166.05,166.0,34.04826918]
[1730448005592,10.27138518,166.05,166.0,23.776884]
[1730448006710,10.27138518,166.05,166.0,34.04826918]
[1730448007009,10.27138518,166.07,166.02,23.776884]
[1730448008096,15.6856,166.1,166.02,23.776884]
[1730448008097,10.27138518,166.05,166.02,23.776884]
[1730448008298,10.27138518,166.05,166.01,24.027864]
[1730448008611,10.27138518,166.08,166.04,0.12549]
[1730448008916,10.27138518,166.08,166.04,24.153354]
[1730448010194,10.27138518,166.08,166.04,0.37647]
[1730448010400,10.27138518,166.06,166.03,0.25098]
[1730448010901,10.27138518,166.07,166.03,0.25098]
[1730448012119,10.27138518,166.06,166.03,0.25098]
[1730448012306,10.27138518,166.07,166.03,0.25098]
[1730448012508,10.27138518,166.08,166.03,0.25098]
[1730448012827,10.27138518,166.07,166.03,0.25098]
[1730448013315,6.3106,166.12,166.03,0.25098]
[1730448013316,10.27138518,166.06,166.03,0.25098]
[1730448013895,10.27138518,166.07,166.03,0.25098]
[1730448014404,10.27138518,166.06,166.03,0.25098]
[1730448014813,10.27138518,166.04,165.99,23.776884]
[1730448015005,10.27138518,166.02,165.97,15.0624]
[1730448015206,10.27138518,166.01,165.96,10.27138518]
[1730448015519,10.27138518,166.0,165.94,16.29728518]
[1730448015697,56.51744072,166.05,165.95,10.39687518]
[1730448015698,10.27138518,166.01,165.95,10.39687518]
[1730448015898,15.4319,166.05,165.94,21.0915]
[1730448016098,10.27138518,166.03,165.97,10.27138518]
[1730448016311,10.27138518,166.03,165.99,0.12549]
[1730448016719,10.27138518,166.03,165.98,0.25098]
[1730448016900,10.27138518,166.0,165.94,31.36288518]
[1730448017597,10.27138518,165.99,165.94,15.0656]
[1730448017795,10.27138518,165.99,165.93,10.27138518]
[1730448018197,10.27138518,166.0,165.94,10.27138518]
[1730448018407,10.27138518,165.99,165.93,10.39687518]
[1730448018616,10.27138518,165.99,165.93,10.27138518]
[1730448019118,10.27138518,165.99,165.94,24.153354]
[1730448019321,10.27138518,165.98,165.94,23.776884]
[1730448019499,10.27138518,165.98,165.93,23.902374]
[1730448019695,10.27138518,165.99,165.94,0.12549]
[1730448019899,10.27138518,166.0,165.95,23.776884]
[1730448020125,10.27138518,165.99,165.95,23.776884]
[1730448020327,10.27138518,165.99,165.94,24.027864]
[1730448021425,20.0,166.04,165.94,24.027864]
[1730448021426,10.27138518,166.0,165.94,10.52236518]
[1730448021820,10.27138518,165.99,165.95,23.776884]
[1730448022319,10.27138518,165.99,165.94,24.027864]
[1730448023229,10.27138518,166.01,165.96,23.776884]
[1730448025908,10.27138518,166.03,165.98,34.29924918]
[1730448026098,10.27138518,166.03,165.99,23.776884]
[1730448026813,10.27138518,166.03,165.98,24.027864]
[1730448029718,10.27138518,166.05,165.99,0.12549]
[1730448030227,10.27138518,166.04,165.99,0.12549]
[1730448030933,10.27138518,166.03,165.99,0.12549]
[1730448032229,10.27138518,166.04,165.99,0.12549]
[1730448034437,10.27138518,166.06,166.0,24.027864]
[1730448034633,10.27138518,166.06,166.01,0.12549]
[1730448035116,10.27138518,166.06,166.02,23.776884]
[1730448035527,10.27138518,166.05,166.01,23.902374]
[1730448035725,10.27138518,166.05,166.0,24.027864]
[1730448037527,10.27138518,166.06,166.01,0.12549]
[1730448039532,10.27138518,166.05,166.01,0.12549]
[1730448040233,10.27138518,166.05,165.99,10.27138518]
[1730448040440,10.27138518,166.03,165.97,16.29648518]
[1730448040737,10.27138518,166.04,165.98,10.27138518]
[1730448041731,10.27138518,166.04,165.99,23.776884]
[1730448041937,10.27138518,166.06,166.0,10.64785518]
[1730448042140,10.27138518,166.06,166.01,23.776884]
[1730448047049,10.27138518,166.09,166.03,10.27138518]
[1730448047340,10.27138518,166.09,166.04,23.776884]
[1730448049330,10.27138518,166.1,166.05,0.12549]
[1730448049632,10.27138518,166.08,166.05,0.37647]
[1730448050033,10.27138518,166.09,166.05,0.37647]
[1730448053764,10.27138518,166.08,166.05,0.37647]
[1730448054054,10.27138518,166.09,166.05,0.37647]
[1730448054235,10.27138518,166.08,166.05,0.37647]
[1730448054652,10.27138518,166.09,166.05,0.37647]
[1730448056743,10.27138518,166.09,166.04,23.776884]
[1730448056953,10.27138518,166.08,166.04,0.25098]
[1730448059262,10.27138518,166.07,166.03,23.776884]
[1730448059440,10.27138518,166.05,166.01,15.7864]
[1730448059637,10.27138518,166.04,165.99,10.27138518]
[1730448059931,10.27138518,166.05,165.99,10.27138518]
[1730448060130,10.27138518,166.04,165.99,10.27138518]
[1730448060451,10.27138518,166.04,166.0,0.12549]
[1730448060757,10.27138518,166.03,165.97,40.42088518]
[1730448060934,10.27138518,166.0,165.95,10.27138518]
[1730448061140,10.27138518,166.01,165.95,10.27138518]
[1730448061935,10.27138518,166.01,165.96,0.12549]
[1730448062135,10.27138518,166.05,165.99,10.27138518]
[1730448062352,10.27138518,166.03,165.99,0.12549]
[1730448062659,10.27138518,166.03,165.99,24.153354]
[1730448063455,10.27138518,166.04,165.99,34.42473918]
[1730448063640,10.27138518,166.06,166.01,23.776884]
[1730448063831,10.27138518,166.06,166.0,10.27138518]
[1730448064038,10.27138518,166.06,166.01,23.776884]
[1730448065458,42.33014958,166.11,166.01,23.776884]
[1730448065459,10.27138518,166.07,166.01,34.04826918]
[1730448065659,10.27138518,166.06,166.01,23.776884]
[1730448066362,10.27138518,166.05,166.01,23.776884]
[1730448066760,10.27138518,166.07,166.02,0.37647]
[1730448066963,10.27138518,166.08,166.03,23.776884]
[1730448067541,10.27138518,166.08,166.04,0.37647]
[1730448067843,10.27138518,166.09,166.05,23.776884]
[1730448068050,10.27138518,166.09,166.04,0.37647]
[1730448069159,10.27138518,166.09,166.04,6.39887]
[1730448069339,10.27138518,166.08,166.05,23.776884]
[1730448070965,10.27138518,166.09,166.05,23.776884]
[1730448073146,10.27138518,166.08,166.05,23.776884]
[1730448073458,10.27138518,166.09,166.05,23.776884]
[1730448074249,64.79303236,166.14,166.01,25.33068518]
[1730448074250,10.27138518,166.06,166.01,25.33068518]
[1730448074445,10.27138518,166.07,166.01,25.33068518]
[1730448074655,10.27138518,166.07,166.02,0.12549]
[1730448075662,10.27138518,166.07,166.02,24.027864]
[1730448075965,10.27138518,166.07,166.02,34.29924918]
[1730448076553,10.27138518,166.09,166.04,34.17375918]
[1730448076871,10.27138518,166.07,166.04,0.25098]
[1730448078555,10.27138518,166.08,166.04,0.25098]
[1730448080972,10.27138518,166.07,166.04,0.25098]
[1730448081678,10.27138518,166.07,166.03,23.902374]
[1730448082669,10.27138518,166.06,166.03,23.902374]
[1730448084175,10.27138518,166.07,166.04,0.25098]
[1730448084360,10.27138518,166.08,166.04,0.25098]
[1730448089177,10.27138518,166.09,166.05,0.25098]
[1730448089376,10.27138518,166.1,166.06,0.25098]
[1730448091860,10.27138518,166.09,166.06,0.25098]
[1730448093677,10.27138518,166.1,166.07,0.12549]
[1730448093881,10.27138518,166.1,166.07,0.25098]
[1730448094265,10.27138518,166.1,166.06,23.902374]
[1730448094580,10.27138518,166.09,166.06,23.902374]
[1730448096169,10.27138518,166.1,166.06,23.902374]
[1730448101368,10.27138518,166.1,166.07,24.027864]
[1730448102793,10.27138518,166.11,166.07,24.027864]
[1730448104175,10.27138518,166.1,166.07,24.027864]
[1730448105194,10.27138518,166.1,166.08,0.12549]
[1730448106487,10.27138518,166.11,166.08,0.12549]
[1730448106690,10.27138518,166.12,166.08,0.12549]
[1730448109796,10.27138518,166.12,166.09,24.027864]
[1730448112493,10.27138518,166.13,166.09,24.027864]
[1730448114988,24.74008389,166.14,166.11,24.027864]
[1730448115492,10.27138518,166.12,166.09,15.052]
[1730448115795,10.27138518,166.11,166.09,15.052]
[1730448117295,10.27138518,166.12,166.08,24.027864]
[1730448117668,10.27138518,166.12,166.09,0.12549]
[1730448121294,10.27138518,166.13,166.09,0.12549]
[1730448122079,10.27138518,166.15,166.11,0.12549]
[1730448122297,39.64471392,166.18,166.11,0.12549]
[1730448122298,10.27138518,166.16,166.11,0.12549]
[1730448122508,10.27138518,166.15,166.11,0.12549]
[1730448125197,10.27138518,166.15,166.12,0.12549]
[1730448125604,10.27138518,166.15,166.12,0.25098]
[1730448130212,10.27138518,166.13,166.09,15.052]
[1730448130415,10.27138518,166.14,166.09,25.32338518]
[1730448130710,10.27138518,166.13,166.1,0.12549]
[1730448131590,10.27138518,166.13,166.1,24.027864]
[1730448131801,10.27138518,166.14,166.11,0.25098]
[1730448137700,10.27138518,166.15,166.12,0.25098]
[1730448137903,10.27138518,166.14,166.12,0.25098]
[1730448138720,10.27138518,166.15,166.12,0.25098]
[1730448140718,10.27138518,166.19,166.14,10.52236518]
[1730448140923,10.27138518,166.18,166.15,23.776884]
[1730448141110,10.27138518,166.18,166.15,0.25098]
[1730448141306,10.27138518,166.18,166.16,0.12549]
[1730448141525,10.27138518,166.18,166.16,0.25098]
[1730448141926,10.27138518,166.17,166.15,0.37647]
[1730448142223,10.27138518,166.18,166.15,0.37647]
[1730448142429,10.27138518,166.17,166.15,0.37647]
[1730448142724,10.27138518,166.18,166.15,0.37647]
[1730448143213,10.27138518,166.18,166.16,23.776884]
[1730448144409,10.27138518,166.18,166.15,24.153354]
[1730448144606,15.71073037,166.22,166.15,0.37647]
[1730448144607,10.27138518,166.16,166.15,0.37647]
[1730448145929,10.27138518,166.17,166.15,0.37647]
[1730448148229,10.27138518,166.18,166.15,0.37647]
[1730448148927,15.71073037,166.22,166.15,0.37647]
[1730448148928,10.27138518,166.17,166.15,0.37647]
[1730448149514,10.27138518,166.17,166.14,23.776884]
[1730448150131,10.27138518,166.18,166.14,23.776884]
[1730448150340,10.27138518,166.18,166.15,0.37647]
[1730448150629,10.27138518,166.19,166.15,0.37647]
[1730448151618,10.27138518,166.21,166.17,0.37647]
[1730448152726,10.85301555,166.22,166.17,0.37647]
[1730448155327,10.27138518,166.21,166.17,0.37647]
[1730448155530,0.58163037,166.22,166.17,0.37647]
[1730448155531,10.27138518,166.19,166.17,0.37647]
[1730448155740,10.27138518,166.2,166.17,0.37647]
[1730448156938,10.27138518,166.21,166.17,0.37647]
[1730448159022,10.27138518,166.2,166.17,0.37647]
[1730448159426,10.27138518,166.2,166.16,23.776884]
[1730448159642,10.27138518,166.21,166.16,29.795084]
[1730448159941,10.27138518,166.2,166.16,29.795084]
[1730448160237,10.27138518,166.2,166.16,23.776884]
[1730448163137,10.27138518,166.21,166.16,23.776884]
[1730448163535,10.27138518,166.2,166.16,23.776884]
[1730448168344,10.27138518,166.21,166.16,23.776884]
[1730448168746,10.27138518,166.2,166.16,23.776884]
[1730448170752,10.27138518,166.2,166.15,15.0466]
[1730448171056,10.27138518,166.19,166.15,15.0466]
[1730448172451,10.27138518,166.2,166.16,0.12549]
[1730448172655,10.85301555,166.22,166.17,0.25098]
[1730448173040,10.27138518,166.21,166.17,0.25098]
[1730448175066,0.58163037,166.22,166.17,0.25098]
[1730448175067,10.85301555,166.22,166.17,10.52236518]
[1730448175241,10.85301555,166.22,166.17,0.25098]
[1730448175453,10.27138518,166.21,166.17,0.25098]
[1730448176664,10.27138518,166.2,166.16,23.902374]
[1730448176880,10.27138518,166.18,166.12,10.27138518]
[1730448177175,10.27138518,166.16,166.11,31.34078518]
[1730448177363,10.27138518,166.16,166.12,0.12549]
[1730448177951,10.27138518,166.17,166.12,0.12549]
[1730448178249,10.27138518,166.17,166.13,0.25098]
[1730448180166,10.27138518,166.15,166.12,23.776884]
[1730448180380,10.27138518,166.15,166.11,23.776884]
[1730448181472,10.27138518,166.16,166.11,23.776884]
[1730448181645,10.27138518,166.17,166.12,10.52236518]
[1730448183165,10.27138518,166.18,166.13,34.17375918]
[1730448183347,10.27138518,166.18,166.13,23.902374]
[1730448183548,10.27138518,166.19,166.15,0.12549]
[1730448183848,10.27138518,166.19,166.15,23.902374]
[1730448184054,10.27138518,166.19,166.15,29.920974]
[1730448184263,10.27138518,166.2,166.15,29.920974]
[1730448184754,10.27138518,166.21,166.15,55.23895918]
[1730448185075,10.27138518,166.2,166.16,0.25098]
[1730448185372,10.27138518,166.21,166.17,0.25098]
[1730448185846,0.58163037,166.22,166.18,10.52236518]
[1730448186051,0.58163037,166.22,166.19,24.027864]
[1730448186265,0.58163037,166.22,166.2,0.12549]
[1730448186460,0.58163037,166.22,166.2,0.25098]
[1730448196685,0.58163037,166.22,166.2,25.56446518]
[1730448196881,0.58163037,166.22,166.2,15.29308]
[1730448197074,0.58163037,166.22,166.2,0.25098]
[1730448203990,0.58163037,166.22,166.2,10.52236518]
[1730448204190,0.58163037,166.22,166.2,0.25098]
[1730448207475,0.58163037,166.22,166.21,34.42473918]
[1730448208692,0.58163037,166.22,166.21,40.44113918]
[1730448209890,0.58163037,166.22,166.21,0.37647]
[1730448210089,0.58163037,166.22,166.19,10.27138518]
[1730448210267,0.58163037,166.22,166.2,0.12549]
[1730448211194,0.58163037,166.22,166.2,0.25098]
[1730448211378,0.58163037,166.22,166.2,24.027864]
[1730448215481,10.27138518,166.21,166.15,21.82525258]
[1730448215688,10.27138518,166.18,166.15,6.28315258]
[1730448216008,10.27138518,166.16,166.1,10.27138518]
[1730448216179,20.0,166.19,166.09,16.55743522]
[1730448216376,20.0,166.19,166.07,37.2526]
[1730448216577,10.27138518,166.16,166.09,6.28669353]
[1730448216775,10.27138518,166.15,166.11,0.12549]
[1730448217004,10.27138518,166.15,166.09,16.55807871]
[1730448217202,10.27138518,166.13,166.09,6.28669353]
[1730448217378,10.27138518,166.12,166.07,26.44868518]
[1730448217579,10.27138518,166.14,166.09,10.27138518]
[1730448218716,10.27138518,166.14,166.08,34.42473918]
[1730448219000,10.27138518,166.13,166.08,34.42473918]
[1730448219901,10.27138518,166.1,166.05,10.27138518]
[1730448220325,10.27138518,166.08,166.04,6.28832337]
[1730448220489,10.27138518,166.06,166.01,10.27138518]
[1730448220684,10.27138518,166.05,166.0,10.27138518]
[1730448221312,10.27138518,166.05,165.99,54.19729206]
[1730448221808,10.27138518,166.03,165.99,37.90150688]
[1730448222017,10.27138518,166.04,165.99,31.6117]
[1730448222693,10.27138518,166.06,166.0,10.39687518]
[1730448222894,10.27138518,166.05,166.0,10.39687518]
[1730448223101,10.27138518,166.04,166.0,24.153354]
[1730448223304,10.27138518,166.05,166.0,24.153354]
[1730448223503,10.27138518,166.06,166.0,40.44873918]
[1730448223710,10.27138518,166.06,166.0,55.50893918]
[1730448224012,10.27138518,166.06,166.01,10.27138518]
[1730448224213,10.27138518,166.06,166.02,23.776884]
[1730448224509,10.27138518,166.06,166.01,23.776884]
[1730448224709,10.27138518,166.05,166.01,23.776884]
[1730448224925,10.27138518,166.04,166.01,23.776884]
[1730448225215,10.27138518,166.04,166.0,23.776884]
[1730448226208,10.27138518,166.02,166.0,23.776884]
[1730448226413,10.27138518,166.02,165.99,23.776884]
[1730448226907,10.27138518,166.03,165.99,23.776884]
[1730448227111,10.27138518,166.02,165.99,23.776884]
[1730448229815,10.27138518,166.01,165.99,23.776884]
[1730448231196,10.27138518,166.02,165.99,23.776884]
[1730448231827,10.27138518,166.03,165.99,23.776884]
[1730448232211,10.27138518,166.01,165.99,23.776884]
[1730448233599,10.27138518,166.0,165.96,21.0885]
[1730448234015,10.27138518,166.0,165.97,23.776884]
[1730448234896,10.27138518,166.02,165.97,23.776884]
[1730448235091,10.27138518,166.03,165.98,0.12549]
[1730448235298,10.27138518,166.03,165.98,0.37647]
[1730448236517,10.27138518,166.03,165.99,23.776884]
[1730448241495,26.19268518,166.06,166.0,10.27138518]
[1730448241699,26.19268518,166.06,166.01,23.776884]
[1730448242003,10.27138518,166.04,165.99,23.776884]
[1730448242203,10.27138518,166.03,165.99,23.776884]
[1730448243600,10.27138518,166.04,165.99,23.776884]
[1730448244200,10.27138518,166.06,166.01,23.776884]
[1730448244598,10.27138518,166.09,166.04,23.776884]
[1730448244803,10.27138518,166.11,166.06,0.12549]
[1730448244999,10.27138518,166.12,166.07,23.776884]
[1730448245617,10.27138518,166.11,166.07,23.776884]
[1730448245937,10.27138518,166.11,166.06,23.902374]
[1730448246727,10.27138518,166.12,166.06,34.17375918]
[1730448248121,10.27138518,166.11,166.06,23.902374]
[1730448248326,10.27138518,166.1,166.04,10.27138518]
[1730448248527,10.27138518,166.1,166.05,23.776884]
[1730448248719,10.27138518,166.11,166.05,10.27138518]
[1730448251223,10.27138518,166.1,166.04,34.04826918]
[1730448251527,10.27138518,166.1,166.05,10.27138518]
[1730448253107,10.27138518,166.1,166.04,34.04826918]
[1730448254730,10.27138518,166.11,166.04,40.07076918]
[1730448255607,10.27138518,166.11,166.05,10.27138518]
[1730448255809,10.27138518,166.11,166.06,23.776884]
[1730448257206,10.27138518,166.07,166.03,23.776884]
[1730448257400,10.27138518,166.05,166.01,15.0593]
[1730448258729,10.27138518,166.06,166.02,23.776884]
[1730448259109,10.27138518,166.07,166.02,23.776884]
[1730448260015,10.27138518,166.06,166.02,23.776884]
[1730448262710,10.27138518,166.04,165.98,16.56028512]
[1730448262915,10.27138518,166.03,165.99,24.027864]
[1730448263115,10.27138518,166.03,165.99,0.25098]
[1730448263525,10.27138518,166.05,165.99,10.52236518]
[1730448263827,10.27138518,166.05,166.0,23.776884]